bitfinex/quotes_ETHUSD_20250623
["timestamp","ask_amount","ask_price","bid_price","bid_amount"]
[1750700504384,1.04446875,2279.9,2279.3,4.38721317]
[1750700504556,1.04446875,2280.0,2279.2,4.38740202]
[1750700504759,1.04446875,2280.0,2278.9,0.8256]
[1750700505094,12.20767767,2280.6,2279.0,4.38788942]
[1750700505095,1.04446875,2280.2,2279.0,4.38788942]
[1750700505395,11.04446875,2280.4,2279.1,4.38769689]
[1750700505552,3.055,2280.9,2279.9,4.38610648]
[1750700505870,1.04612903,2280.8,2280.0,4.38591347]
[1750700506073,1.04612903,2280.8,2280.0,4.38577597]
[1750700506259,11.04612903,2280.9,2279.8,0.796]
[1750700506458,11.04612903,2280.9,2280.0,4.38587507]
[1750700506664,1.04612903,2280.9,2280.4,4.38503159]
[1750700506864,7.65421594,2282.7,2280.6,4.38481101]
[1750700506865,15.26167767,2282.2,2280.6,4.38481101]
[1750700507092,1.04529442,2282.1,2281.4,4.38311231]
[1750700507259,10.542,2282.6,2281.3,8.998]
[1750700507260,1.04529442,2282.4,2281.3,8.998]
[1750700507463,12.20767767,2282.2,2281.3,8.998]
[1750700507786,10.0,2281.5,2280.4,8.996]
[1750700508090,10.0,2281.2,2280.4,8.996]
[1750700508386,10.55,2280.9,2279.8,0.8134]
[1750700508554,10.55,2280.9,2280.1,4.38560551]
[1750700508750,10.542,2281.5,2280.3,4.38528333]
[1750700508751,10.0,2281.2,2280.3,4.38528333]
[1750700509066,10.0,2281.4,2280.5,4.38495455]
[1750700509277,10.0,2281.4,2280.7,4.38453225]
[1750700509453,10.0,2281.4,2280.6,5.19935946]
[1750700509657,10.0,2281.4,2280.8,4.38442472]
[1750700509857,10.0,2281.4,2280.6,5.19950084]
[1750700510055,10.0,2281.4,2280.7,4.38461875]
[1750700510255,3.004,2282.2,2280.6,0.8147]
[1750700510470,1.04073226,2282.2,2280.8,4.38442651]
[1750700510792,12.20767767,2282.6,2281.2,4.38365772]
[1750700510996,3.004,2282.8,2281.5,4.38297205]
[1750700511211,3.004,2282.8,2281.4,0.7882]
[1750700511212,10.0,2282.5,2281.7,4.38267439]
[1750700511501,15.21167767,2282.6,2281.7,4.38266867]
[1750700511654,1.52116777,2282.5,2282.2,4.38162141]
[1750700511855,22.74767767,2283.2,2282.0,4.38204664]
[1750700512211,12.20767767,2282.9,2281.7,8.984]
[1750700512359,10.0,2282.7,2281.8,4.3824854]
[1750700512568,10.0,2282.7,2281.9,4.38213912]
[1750700513290,10.0,2282.7,2281.8,4.38242501]
[1750700513454,2.42229299,2282.6,2281.5,13.36297275]
[1750700513662,0.55,2282.6,2281.5,4.38297275]
[1750700513855,0.55,2282.6,2281.6,8.977]
[1750700514119,14.75205921,2282.4,2281.6,8.977]
[1750700514292,2.47520592,2282.3,2281.6,8.977]
[1750700514602,0.55,2282.6,2281.6,13.35976446]
[1750700514897,10.0,2282.7,2281.6,8.977]
[1750700515098,13.003,2282.7,2281.7,4.38263834]
[1750700515410,0.55,2282.6,2281.6,13.35987215]
[1750700515558,0.55,2282.6,2281.7,4.38266738]
[1750700515763,1.055,2282.5,2281.8,4.38246252]
[1750700516006,10.0,2282.7,2281.6,8.977]
[1750700516218,0.02087065,2282.8,2281.9,0.8213]
[1750700516426,0.02087065,2282.8,2282.2,4.38172159]
[1750700516595,0.02087065,2282.8,2282.3,4.38151489]
[1750700516795,0.02087065,2282.8,2282.0,4.38203608]
[1750700516982,0.02087065,2282.8,2282.2,4.3816352]
[1750700517312,0.02087065,2282.8,2282.1,4.38192892]
[1750700517313,0.02087065,2282.8,2281.9,3.8243]
[1750700517314,0.02087065,2282.8,2282.5,4.38106175]
[1750700517518,0.02087065,2282.8,2282.4,4.3812854]
[1750700517681,0.02087065,2282.8,2282.3,8.967]
[1750700517875,0.02087065,2282.8,2281.9,0.8213]
[1750700518088,0.02087065,2282.8,2282.0,8.964]
[1750700518409,0.02087065,2282.8,2282.1,4.38191979]
[1750700518608,0.02087065,2282.8,2282.0,8.964]
[1750700518811,0.02087065,2282.8,2282.2,4.38165003]
[1750700519014,10.55,2282.8,2281.1,0.8001]
[1750700519219,2.47520592,2282.7,2281.2,8.96]
[1750700519380,10.55,2282.9,2282.1,4.38192168]
[1750700519580,10.55,2282.9,2281.7,0.7562]
[1750700519781,13.552,2282.9,2281.7,0.7562]
[1750700519981,13.552,2282.9,2282.0,4.38210989]
[1750700520282,10.0,2282.9,2281.9,13.33927405]
[1750700520481,10.532,2283.0,2282.0,1.33392741]
[1750700520682,3.002,2283.5,2282.6,4.380803]
[1750700521046,3.002,2283.5,2281.8,4.38250401]
[1750700521047,10.0,2282.9,2281.8,0.7551]
[1750700521329,10.0,2282.1,2280.9,0.7551]
[1750700521555,0.55,2282.0,2280.9,0.7551]
[1750700521820,13.002,2282.1,2280.9,0.7551]
[1750700522003,0.55,2282.0,2280.9,5.13920859]
[1750700522207,0.55,2282.0,2281.2,4.3836389]
[1750700522404,10.0,2282.3,2280.9,0.7551]
[1750700522613,0.55,2282.2,2281.3,4.38337281]
[1750700522829,0.55,2282.2,2281.0,8.95]
[1750700523039,10.0,2281.9,2280.9,0.7551]
[1750700523190,13.002,2281.9,2280.9,0.7551]
[1750700523388,13.002,2281.9,2281.1,4.38370909]
[1750700523601,13.002,2281.9,2280.9,0.7551]
[1750700523882,13.002,2281.9,2281.0,4.38395176]
[1750700524088,0.55,2282.0,2281.2,4.383524]
[1750700524402,0.55,2281.8,2280.8,13.33329072]
[1750700524616,10.55,2281.8,2280.9,4.3842109]
[1750700524787,10.55,2281.8,2280.9,4.38416815]
[1750700524982,10.55,2281.8,2280.6,0.8283]
[1750700525197,10.55,2281.5,2280.3,0.8283]
[1750700525399,3.002,2281.6,2280.3,0.8283]
[1750700525603,10.0,2281.5,2280.8,4.38430391]
[1750700526019,0.55,2281.9,2280.9,4.38422634]
[1750700526020,10.55,2281.9,2280.9,4.38422634]
[1750700526194,10.55,2281.7,2280.4,8.943]
[1750700526399,11.9052,2281.7,2280.7,4.38453366]
[1750700526595,1.3552,2282.1,2281.2,4.3835561]
[1750700526795,11.03570066,2282.3,2281.4,4.38317114]
[1750700526995,10.0,2282.3,2281.2,8.94]
[1750700527297,0.55,2282.2,2281.0,0.8112]
[1750700527536,10.0,2281.5,2280.5,4.3848995]
[1750700527718,10.0,2281.5,2280.4,8.938]
[1750700528017,10.0,2281.5,2280.8,4.38434619]
[1750700528230,10.0,2281.5,2280.6,4.38468832]
[1750700528231,10.0,2281.9,2280.7,4.38461875]
[1750700528391,3.002,2282.4,2280.9,5.17383429]
[1750700528726,3.002,2282.4,2280.9,5.1737219]
[1750700528727,0.55,2282.3,2280.9,5.1737219]
[1750700528883,1.5867021,2282.3,2281.0,4.38403366]
[1750700529089,0.55,2282.1,2281.0,0.95579728]
[1750700529287,0.55,2282.1,2281.2,4.38358079]
[1750700529624,1.87907613,2282.2,2280.9,5.17377544]
[1750700529625,2.91710408,2282.2,2280.9,5.17377544]
[1750700529847,3.002,2282.4,2281.6,4.38279613]
[1750700529992,3.002,2282.4,2281.4,4.38317016]
[1750700530328,10.0,2282.4,2281.4,4.38322157]
[1750700530495,1.9052,2282.3,2281.3,8.933]
[1750700530700,2.94316269,2282.3,2281.3,8.933]
[1750700531004,0.55,2282.1,2281.2,4.38353706]
[1750700531318,1.04039711,2282.1,2281.0,13.31397561]
[1750700531519,14.04235022,2282.2,2281.1,4.38375959]
[1750700531726,10.0,2282.0,2281.1,4.38375959]
[1750700531928,10.0,2282.0,2281.2,4.38364016]
[1750700532124,10.0,2282.0,2280.9,0.7896]
[1750700532125,0.55,2281.9,2280.9,0.7896]
[1750700532297,0.55,2281.9,2280.5,0.8938]
[1750700532298,10.0,2281.4,2280.5,10.5737]
[1750700532506,0.55,2281.9,2280.8,4.38427864]
[1750700532731,0.55,2281.7,2280.9,4.38415663]
[1750700532914,0.55,2281.7,2280.9,4.38422508]
[1750700533121,1.04174939,2281.8,2280.9,4.38423429]
[1750700533316,1.04174939,2281.9,2281.0,4.38396087]
[1750700533510,1.04293234,2282.0,2280.8,0.43842786]
[1750700533717,0.55,2281.8,2280.8,0.43842786]
[1750700533925,0.55,2281.8,2280.8,4.82274393]
[1750700533926,1.04293234,2281.7,2280.8,4.82274393]
[1750700534125,10.55,2281.6,2280.7,8.923]
[1750700534326,10.0,2281.3,2280.7,8.923]
[1750700534530,1.04293234,2281.2,2280.7,8.923]
[1750700534732,1.04293234,2281.2,2280.3,3.002]
[1750700534950,12.19547919,2281.4,2279.6,10.531]
[1750700534951,10.0,2281.0,2280.0,8.921]
[1750700535102,1.04293234,2281.0,2280.0,8.921]
[1750700535306,1.04293234,2280.9,2280.1,4.38561076]
[1750700535516,1.04293234,2280.8,2279.9,8.92]
[1750700535806,1.04293234,2280.8,2279.7,8.3851]
[1750700535807,12.19547919,2281.3,2280.0,4.38587871]
[1750700536111,12.86748026,2281.2,2280.0,9.35758787]
[1750700536419,10.0,2281.0,2280.3,4.38528544]
[1750700536615,1.04293234,2280.9,2280.4,4.38510091]
[1750700536819,1.04293234,2280.8,2280.5,4.38492409]
[1750700537114,1.04293234,2281.1,2280.2,4.38558021]
[1750700537345,12.19547919,2281.6,2280.7,4.38449324]
[1750700537346,3.002,2281.5,2280.7,4.38449324]
[1750700537592,3.002,2281.5,2280.3,5.58602005]
[1750700537593,12.19547919,2281.3,2280.3,4.82385694]
[1750700537850,11.59554356,2281.2,2280.1,13.30058569]
[1750700538026,0.55,2280.6,2279.5,0.7621]
[1750700538228,1.04554356,2280.5,2279.8,4.38621866]
[1750700538435,1.04554356,2280.5,2279.8,1.76866813]
[1750700538740,1.04554356,2280.8,2280.1,4.38575995]
[1750700538953,1.04554356,2280.9,2280.2,4.38543447]
[1750700539130,1.04554356,2280.9,2280.1,4.38572284]
[1750700539131,1.04554356,2280.8,2280.1,4.3855995]
[1750700539331,1.04554356,2280.9,2280.2,4.38557177]
[1750700539540,1.04554356,2280.9,2280.3,4.38537221]
[1750700539741,1.04554356,2281.1,2280.2,0.87711713]
[1750700539939,1.04554356,2281.0,2280.1,4.38563515]
[1750700540140,10.0,2281.2,2279.8,1.76866813]
[1750700540141,1.04554356,2280.9,2279.8,1.76866813]
[1750700540344,10.0,2281.0,2279.8,1.76866813]
[1750700540547,11.04554356,2281.0,2280.3,4.38525365]
[1750700540748,11.04554356,2281.0,2280.4,4.38517183]
[1750700541044,1.04554356,2281.0,2279.9,4.38615728]
[1750700541250,1.04554356,2281.1,2280.0,0.61548254]
[1750700541427,10.55,2280.6,2279.6,8.908]
[1750700541630,11.59554356,2280.6,2279.8,4.38625504]
[1750700541959,2.953,2281.2,2280.1,4.38565865]
[1750700541960,10.55,2281.2,2280.1,4.38565865]
[1750700542120,2.953,2280.9,2279.9,4.38605789]
[1750700542319,2.953,2280.9,2279.7,4.38642022]
[1750700542320,1.04466326,2280.8,2279.7,4.38642022]
[1750700542522,1.04466326,2280.8,2279.8,1.32944202]
[1750700542523,10.0,2280.6,2279.8,1.32944202]
[1750700542722,11.04466326,2280.6,2279.9,4.38613851]
[1750700543125,11.04466326,2280.6,2279.8,4.38625343]
[1750700543320,11.04466326,2280.6,2279.6,8.908]
[1750700543321,11.04466326,2280.6,2279.9,4.38601035]
[1750700543521,10.0,2280.8,2280.1,4.38568722]
[1750700543738,1.04444045,2280.8,2279.7,4.38654208]
[1750700543957,1.0443647,2281.0,2280.1,4.38565281]
[1750700544457,1.0443647,2280.9,2279.9,4.3860421]
[1750700544632,0.55,2280.7,2279.8,3.78345421]
[1750700544833,11.0443647,2280.8,2279.9,4.38615728]
[1750700545039,1.0443647,2280.8,2279.9,4.38605767]
[1750700545366,1.0443647,2280.9,2280.0,1.46165119]
[1750700545523,1.0443647,2281.0,2280.0,1.46165119]
[1750700545724,12.19547919,2280.5,2278.8,14.02232477]
[1750700545961,0.53,2279.0,2278.9,5.18578196]
[1750700546258,0.5298,2280.4,2279.6,4.38673178]
[1750700546460,0.5298,2280.4,2279.5,8.897]
[1750700546635,0.5298,2280.2,2279.2,8.897]
[1750700546965,0.55,2279.9,2279.2,8.897]
[1750700547126,0.5298,2279.8,2279.2,8.897]
[1750700547727,10.55,2279.7,2278.8,14.02232477]
[1750700547959,0.5298,2279.3,2278.5,8.894]
[1750700548164,0.5298,2279.3,2278.5,2.1419744]
[1750700548347,0.5298,2279.3,2278.5,13.28173721]
[1750700548547,12.19547919,2279.2,2278.3,0.7936]
[1750700548753,10.0,2279.1,2278.1,4.38951196]
[1750700548955,0.5298,2279.0,2278.1,8.892]
[1750700549549,0.5298,2279.0,2278.5,4.38873034]
[1750700549842,0.5298,2279.0,2278.3,4.38920206]
[1750700550096,0.5298,2279.0,2278.3,6.15623906]
[1750700550265,0.5298,2279.0,2278.7,4.38830829]
[1750700551437,0.5298,2280.3,2279.7,4.38653205]
[1750700551765,0.5298,2280.3,2279.6,0.87734984]
[1750700551961,0.5298,2280.3,2279.6,5.26400306]
[1750700552380,10.5298,2280.3,2279.3,2.954]
[1750700552547,10.5298,2280.3,2279.4,4.38697845]
[1750700552748,10.5298,2280.3,2279.3,2.954]
[1750700552967,0.5298,2280.3,2279.3,2.954]
[1750700553265,0.5298,2280.3,2278.9,15.47604926]
[1750700553266,0.5298,2280.3,2279.6,4.38672702]
[1750700553459,10.5298,2280.3,2279.6,8.884]
[1750700553670,12.80232792,2280.3,2279.6,8.884]
[1750700554045,10.5298,2280.0,2279.1,4.3876025]
[1750700554234,10.5298,2280.0,2279.0,13.27088942]
[1750700554431,10.0,2279.7,2279.0,8.883]
[1750700554635,10.0,2279.7,2279.0,13.27087288]
[1750700554845,10.0,2279.7,2279.0,11.77873727]
[1750700555047,0.5298,2279.6,2278.9,8.881]
[1750700555249,0.5298,2279.6,2279.0,4.38784132]
[1750700555486,0.5298,2279.6,2279.0,4.3877106]
[1750700555636,0.5298,2279.6,2279.0,4.38777411]
[1750700555832,0.5298,2279.6,2279.1,4.38769632]
[1750700556247,0.5298,2279.6,2279.2,4.38747442]
[1750700556576,10.5298,2279.6,2278.3,1.76705037]
[1750700556784,10.5298,2279.6,2278.4,9.6789]
[1750700556785,10.0,2279.3,2278.4,9.6789]
[1750700557010,0.5298,2279.2,2278.4,8.877]
[1750700557303,10.0,2279.0,2278.4,8.877]
[1750700557439,0.5298,2279.2,2278.5,1.79882523]
[1750700557640,0.5298,2279.2,2278.5,4.38876667]
[1750700557870,0.5298,2279.2,2278.6,4.388634]
[1750700558075,0.5298,2279.2,2278.5,4.38874651]
[1750700558273,0.5298,2279.2,2278.4,8.877]
[1750700558475,0.5298,2279.2,2278.7,4.38845402]
[1750700558677,0.5298,2279.9,2279.0,4.38788942]
[1750700558969,0.5298,2279.9,2279.2,4.38749911]
[1750700559179,10.5298,2279.9,2278.9,0.7931]
[1750700559380,12.19547919,2279.7,2279.0,4.38781427]
[1750700559551,12.19547919,2279.7,2279.1,4.38757435]
[1750700559743,10.5298,2279.9,2279.1,4.38757435]
[1750700559744,10.5298,2279.9,2279.1,0.43875744]
[1750700560071,0.5298,2279.9,2279.1,8.77509394]
[1750700560275,0.5298,2279.9,2279.3,4.38730476]
[1750700560452,0.5298,2279.9,2278.8,13.26019921]
[1750700560453,0.5298,2279.9,2278.9,4.38808196]
[1750700560979,0.5298,2279.9,2279.5,4.38689937]
[1750700561184,0.5298,2279.9,2279.0,0.7549]
[1750700561401,0.5298,2279.9,2279.2,4.38733301]
[1750700561580,0.5298,2279.9,2279.1,8.868]
[1750700561889,0.5298,2279.9,2279.2,5.34978793]
[1750700562297,0.5298,2279.9,2279.3,4.38728609]
[1750700562661,0.5298,2279.9,2279.2,0.96229]
[1750700562868,0.5298,2279.9,2279.1,8.868]
[1750700563471,0.5298,2279.9,2279.1,13.25567323]
[1750700563694,0.5298,2279.9,2279.3,4.38717401]
[1750700563909,0.5298,2279.9,2279.3,4.38721485]
[1750700564204,0.5298,2279.9,2279.1,8.868]
[1750700564372,0.55,2279.8,2278.6,0.7512]
[1750700564570,10.0,2279.8,2279.1,4.38768323]
[1750700564786,0.5298,2279.9,2278.9,4.38808196]
[1750700565195,0.5298,2279.9,2279.3,4.38718334]
[1750700565394,0.5298,2279.9,2279.4,8.86]
[1750700565717,2.61971014,2281.8,2279.4,8.86]
[1750700565718,0.5298,2281.0,2279.6,4.38673451]
[1750700566006,0.5298,2281.0,2280.5,4.38498547]
[1750700566211,0.5298,2281.0,2280.4,13.24312495]
[1750700566366,0.5298,2281.0,2280.4,13.2430943]
[1750700566568,0.5298,2281.0,2280.5,4.38500152]
[1750700566911,0.5298,2281.0,2280.4,8.858]
[1750700566912,0.5298,2281.0,2280.4,13.24309981]
[1750700567204,0.5298,2281.0,2280.5,4.38485437]
[1750700567763,0.5298,2281.0,2280.4,8.858]
[1750700568166,0.5298,2281.0,2280.5,4.3850024]
[1750700568490,0.5298,2281.0,2280.6,4.38472651]
[1750700568993,0.5298,2281.0,2280.7,4.38458131]
[1750700569193,0.5298,2281.4,2280.8,4.38430851]
[1750700569570,0.5298,2281.4,2280.9,4.38419792]
[1750700569761,0.5298,2281.4,2280.8,4.38430851]
[1750700569762,0.5298,2281.4,2281.2,4.38360019]
[1750700569978,0.5298,2281.7,2281.2,5.70696021]
[1750700570172,0.5298,2281.7,2281.3,4.38338305]
[1750700570375,0.5298,2281.7,2281.0,13.23401977]
[1750700570595,0.5298,2281.7,2281.2,4.3836538]
[1750700571108,0.5298,2281.7,2281.2,4.38357258]
[1750700571273,0.5298,2281.7,2281.0,8.85]
[1750700571474,0.5298,2281.7,2280.8,5.14450209]
[1750700571475,12.72527919,2281.7,2280.8,5.14450209]
[1750700571686,10.0,2281.6,2280.9,13.2282203]
[1750700572407,10.0,2281.3,2281.0,8.843]
[1750700572700,0.5298,2281.2,2281.0,8.843]
[1750700572908,0.5298,2281.5,2281.0,8.843]
[1750700573271,0.5298,2281.5,2281.2,4.38352604]
[1750700573506,0.5298,2282.6,2281.2,4.2316526]
[1750700573816,0.5298,2282.6,2281.4,0.7559]
[1750700573981,0.5298,2282.6,2281.9,4.38220747]
[1750700574323,0.5298,2282.6,2282.0,13.21804212]
[1750700574630,0.5298,2282.6,2282.0,13.21802206]
[1750700574777,0.5298,2282.6,2281.3,4.38346556]
[1750700574778,12.19547919,2282.4,2281.3,4.38346556]
[1750700575120,12.19547919,2282.4,2281.6,4.38277902]
[1750700575332,10.0,2282.3,2281.2,14.0275277]
[1750700575478,10.0,2282.0,2281.3,4.38343407]
[1750700576017,10.0,2282.0,2281.2,9.6439]
[1750700576018,10.0,2282.0,2281.2,13.21863553]
[1750700576200,12.27252792,2282.0,2281.2,8.835]
[1750700576416,10.0,2282.0,2281.2,8.835]
[1750700576602,10.0,2282.0,2281.3,4.38330188]
[1750700576803,10.0,2282.0,2281.4,4.38324902]
[1750700577012,10.0,2282.0,2281.2,13.21859003]
[1750700577013,10.0,2282.0,2281.3,4.38341555]
[1750700577228,10.0,2282.0,2281.2,8.835]
[1750700577229,10.0,2282.0,2281.2,13.21850874]
[1750700577519,0.5298,2282.2,2281.5,4.38299653]
[1750700578082,0.5298,2282.2,2281.7,4.38265824]
[1750700578287,0.5298,2282.2,2281.7,8.826]
[1750700578825,0.5298,2282.2,2281.3,8.824]
[1750700578826,10.0,2281.7,2281.3,8.824]
[1750700579024,10.0,2281.4,2280.9,2.908]
[1750700579205,10.0,2281.4,2280.8,8.824]
[1750700579206,10.0,2281.4,2280.8,13.20833359]
[1750700579397,0.5298,2281.6,2280.8,13.20833359]
[1750700579398,0.5298,2281.6,2281.0,4.383943]
[1750700580081,0.5298,2281.6,2281.1,4.38382858]
[1750700580320,0.5298,2281.6,2281.2,4.38354128]
[1750700580522,0.5298,2281.6,2281.3,8.821]
[1750700580696,0.5298,2281.6,2280.8,1.32083336]
[1750700580697,0.5298,2281.6,2280.8,5.70518294]
[1750700580890,0.5298,2281.6,2281.1,8.819]
[1750700581103,2.80232792,2281.6,2281.1,8.819]
[1750700581414,2.80232792,2281.6,2281.1,13.20283585]
[1750700581415,0.5298,2281.6,2281.1,13.20283585]
[1750700581624,0.5298,2282.0,2281.2,0.7841]
[1750700582122,0.5298,2282.0,2281.4,4.38309144]
[1750700582485,0.5298,2282.0,2281.5,4.38291145]
[1750700582680,0.5298,2282.0,2281.4,8.814]
[1750700582926,0.5298,2282.0,2281.4,9.6954]
[1750700583145,0.5298,2282.0,2281.4,8.814]
[1750700583633,0.5298,2282.0,2281.1,4.38381082]
[1750700583634,12.72527919,2282.0,2281.2,8.812]
[1750700583842,10.0,2281.9,2281.2,8.812]
[1750700584339,0.5298,2282.0,2281.2,13.19562907]
[1750700584481,0.5298,2282.0,2281.2,16.10362907]
[1750700584685,0.5298,2282.0,2281.6,4.38277208]
[1750700584915,0.5298,2282.0,2281.3,1.61036291]
[1750700585223,10.0,2281.9,2281.2,13.19552843]
[1750700585421,10.0,2281.9,2281.2,8.812]
[1750700585718,0.5298,2282.0,2281.3,4.38331042]
[1750700585922,0.5298,2282.0,2281.4,1.31953104]
[1750700586322,0.5298,2282.0,2281.5,4.38294014]
[1750700586485,0.5298,2282.0,2281.4,1.31953104]
[1750700586685,0.5298,2282.0,2281.7,4.38252643]
[1750700586885,0.5298,2282.0,2281.8,13.18640291]
[1750700587338,0.5298,2282.5,2282.0,4.38201103]
[1750700587638,12.19547919,2282.4,2281.8,8.804]
[1750700587863,0.5298,2282.5,2281.8,8.804]
[1750700588017,0.5298,2282.5,2282.0,4.38209174]
[1750700588654,0.5298,2282.5,2281.9,4.38223895]
[1750700589051,0.5298,2282.9,2282.0,2.907]
[1750700589262,0.5298,2282.9,2281.9,6.13907054]
[1750700589457,0.5298,2282.9,2282.1,8.798]
[1750700589458,10.0,2282.7,2282.1,8.798]
[1750700589617,0.5298,2282.6,2282.1,8.798]
[1750700590054,10.0,2282.4,2281.9,8.796]
[1750700590255,12.19547919,2282.2,2281.5,8.796]
[1750700591022,12.19547919,2282.2,2281.6,4.38279184]
[1750700591221,10.5298,2281.8,2281.6,1.75620075]
[1750700591438,0.5298,2281.8,2281.0,8.793]
[1750700592146,0.5298,2281.5,2281.1,8.791]
[1750700593149,0.5298,2281.5,2280.7,10.531]
[1750700593367,10.5298,2281.3,2280.7,8.788]
[1750700593934,0.55,2281.2,2280.6,8.787]
[1750700594365,10.5298,2281.3,2280.6,8.787]
[1750700594552,0.55,2281.2,2280.6,8.787]
[1750700594936,10.5298,2281.3,2280.6,8.787]
[1750700595136,10.5298,2281.3,2280.6,13.17172341]
[1750700595377,10.5298,2281.3,2280.0,4.38582839]
[1750700595378,12.19547919,2280.7,2280.0,4.38582839]
[1750700595549,0.5298,2280.5,2279.8,8.784]
[1750700595876,1.57614677,2280.5,2279.8,8.784]
[1750700596262,1.04634677,2280.4,2279.8,10.10106198]
[1750700596457,0.55,2280.4,2279.8,10.10106198]
[1750700596659,1.57614677,2280.5,2279.8,14.48731593]
[1750700596976,0.5298,2280.5,2279.8,14.48731593]
[1750700597334,0.5298,2280.5,2279.9,8.782]
[1750700597535,0.5298,2280.5,2280.2,4.38553654]
[1750700597739,0.5298,2280.8,2280.4,4.38519368]
[1750700597969,0.5298,2280.8,2280.5,8.782]
[1750700598158,0.5298,2280.8,2280.6,4.3847981]
[1750700598670,0.5298,2280.8,2280.7,4.38461875]
[1750700598869,0.5298,2281.3,2280.7,1.75514169]
[1750700599086,0.5298,2281.3,2280.5,8.782]
[1750700599285,0.5298,2281.3,2280.6,4.38477674]
[1750700599476,0.5298,2281.3,2280.9,4.38412977]
[1750700599786,1.045229,2281.8,2280.6,4.38477674]
[1750700599787,0.5298,2281.7,2281.0,13.16196505]
[1750700599953,0.5298,2281.7,2281.0,13.16196323]
[1750700600356,0.5298,2281.7,2281.1,4.38382798]
[1750700600753,0.5298,2281.7,2281.0,14.91657149]
[1750700600946,0.5298,2281.7,2281.0,8.778]
[1750700600947,1.0798,2281.7,2281.0,8.778]
[1750700601252,0.55,2281.1,2280.6,8.775]
[1750700601447,1.57497088,2281.2,2280.6,8.775]
[1750700601654,0.5298,2281.2,2280.6,8.775]
[1750700602064,0.55,2281.1,2280.6,8.775]
[1750700602366,1.21249709,2281.1,2280.4,4.38516137]
[1750700602561,1.21249709,2281.1,2280.5,8.774]
[1750700603406,1.57497088,2281.2,2280.5,13.15890201]
[1750700603555,0.5298,2281.2,2280.5,13.15890201]
[1750700603755,0.5298,2281.2,2280.5,8.774]
[1750700604255,0.5298,2281.2,2280.6,4.38469669]
[1750700604450,0.5298,2281.2,2280.5,8.774]
[1750700605360,0.5298,2280.8,2280.4,8.767]
[1750700605559,0.5298,2280.8,2280.3,8.767]
[1750700605760,0.5298,2280.8,2280.4,4.38511897]
[1750700605995,0.5298,2280.8,2280.3,13.15222524]
[1750700606405,0.5298,2280.8,2280.4,4.38507217]
[1750700606755,0.5298,2281.2,2280.5,4.38489899]
[1750700606955,0.5298,2281.2,2280.6,4.38471186]
[1750700607265,0.5298,2281.2,2280.5,4.38489409]
[1750700607461,0.5298,2281.2,2280.4,6.13883171]
[1750700607685,0.5298,2281.2,2280.3,8.767]
[1750700607867,0.5298,2281.2,2280.5,4.38489656]
[1750700608493,0.5298,2281.2,2280.4,5.34040923]
[1750700608696,0.55,2281.1,2280.3,8.767]
[1750700608990,0.55,2281.1,2279.9,4.38602398]
[1750700608991,10.55,2280.9,2279.9,4.38602398]
[1750700609188,0.55,2280.5,2279.8,8.759]
[1750700609391,0.5298,2280.6,2279.8,13.14533193]
[1750700609596,0.5298,2280.6,2279.9,4.38613653]
[1750700609760,0.5298,2280.6,2279.8,14.74617346]
[1750700609957,0.5298,2280.6,2279.8,14.74618181]
[1750700610385,0.5298,2280.6,2279.9,4.38615728]
[1750700610583,0.5298,2280.6,2280.0,4.38583688]
[1750700610785,0.5298,2280.6,2280.0,4.38596395]
[1750700610981,0.5298,2280.6,2280.1,4.38568899]
[1750700611185,0.5298,2280.6,2280.2,13.13945035]
[1750700611477,0.5298,2280.9,2280.4,4.38508209]
[1750700611882,0.5298,2280.9,2280.3,4.38528261]
[1750700612817,0.5298,2280.9,2280.2,13.13951802]
[1750700612818,0.5298,2280.9,2280.2,8.754]
[1750700613022,0.5298,2280.9,2280.4,4.38502291]
[1750700613322,0.5298,2280.9,2280.3,0.8754]
[1750700613323,0.5298,2280.9,2280.5,8.751]
[1750700616816,0.55,2280.8,2280.5,8.751]
[1750700617126,0.55,2280.6,2279.9,8.742]
[1750700617427,0.55,2280.2,2279.7,8.741]
[1750700617635,0.55,2280.0,2279.5,8.741]
[1750700617994,0.5298,2280.1,2279.5,8.741]
[1750700618232,0.5298,2280.5,2280.0,4.38587676]
[1750700618397,0.5298,2280.5,2280.0,8.74]
[1750700619934,10.0,2280.8,2279.1,4.38755882]
[1750700619935,0.5298,2280.1,2279.1,4.38755882]
[1750700620134,0.5298,2280.1,2279.2,8.735]
[1750700620295,1.57656531,2280.1,2279.2,8.735]
[1750700620495,0.5298,2280.1,2279.4,4.38702825]
[1750700620795,0.5298,2280.1,2279.2,10.04728835]
[1750700620796,0.5298,2280.1,2279.3,4.38730445]
[1750700621013,0.5298,2280.1,2279.2,10.04728835]
[1750700621314,0.5298,2280.1,2279.5,4.38681932]
[1750700621928,0.5298,2280.1,2279.6,4.38662468]
[1750700622239,0.5298,2280.1,2279.7,8.732]
[1750700623011,0.5298,2280.4,2279.7,8.732]
[1750700623226,0.5298,2281.2,2280.2,4.38545785]
[1750700623534,1.59814266,2281.1,2280.3,8.729]
[1750700623733,1.68961427,2281.0,2280.3,8.729]
[1750700623936,0.5298,2281.0,2280.3,8.729]
[1750700624133,0.55,2280.7,2280.0,8.728]
[1750700624337,0.55,2280.7,2279.4,2.865]
[1750700624338,0.5298,2280.4,2279.8,8.728]
[1750700624536,0.55,2280.3,2279.8,8.728]
[1750700625234,0.55,2280.3,2279.5,4.38677314]
[1750700625451,0.55,2280.3,2279.6,8.727]
[1750700625656,0.55,2280.3,2279.6,8.724]
[1750700626253,1.21281045,2280.2,2279.6,8.724]
[1750700626438,0.55,2280.3,2279.6,8.724]
[1750700626832,0.5298,2280.2,2279.6,8.724]